Cogmind - Beta 17 @@@ ROGUE MODE // 2026.07.03 @ 18:33:28 Player: teag2 Result: Destroyed by DQ-JYE(R) with Subdweller Machine Gun Performance ------------- Evolutions (0) 0 Regions Visited (2) 400 Robots Destroyed (21) 105 Value Destroyed (452) 452 Prototype IDs (0) 0 Alien Tech Used (0) 0 Bonus (0) 0 TOTAL SCORE: 957 Bonus ------- None Cogmind --------- Core Integrity 0/250 Matter 276/300 Energy 105/125 System Corruption 2% Temperature Cool (0) Movement Rolling (150) Ox4 Location -10/Subcaves Parts ------- > --- POWER (1) -------- Light Ion Engine > --- PROPULSION (2) --- Light Treads Subdweller Monowheel > --- UTILITY (2) ------ Huge Storage Unit Light Armor Plating > --- WEAPON (2) ------- Battle Rifle > --- INVENTORY (25) --- Light Ion Engine Light Treads Subdweller Monowheel Improved Heat Sink Subdweller Optics Subdweller Optics ECM Suite Hacking Suite Tractor Beam Field Recycling Unit (0) EM Pulse Gun Subdweller Laser Assault Rifle Light Assault Rifle Light Assault Rifle Enhanced Flamer Scrap Shield Fragment (48) Peak State ------------ > --- POWER ------------ Light Ion Engine > --- PROPULSION ------- Light Treads Subdweller Monowheel > --- UTILITY ---------- High-capacity Storage Unit Hacking Suite > --- WEAPON ----------- Battle Rifle Subdweller Shrapnel Launcher > --- INVENTORY -------- Light Ion Engine Light Ion Engine Light Treads Light Treads Subdweller Monowheel Improved Heat Sink Huge Storage Unit ECM Suite Light Armor Plating Hacking Suite Tractor Beam Field Recycling Unit EM Pulse Gun EM Pulse Gun Subdweller Laser Assault Rifle Light Assault Rifle Light Assault Rifle Enhanced Flamer Scrap Shield Fragment [Rating: 15] Favorites ----------- Power Light Ion Engine Engine Light Ion Engine Propulsion Light Treads Treads Light Treads Wheel Subdweller Monowheel Utility Hacking Suite Storage Large Storage Unit Hackware Hacking Suite Weapon Assault Rifle Energy Gun EM Pulse Gun Energy Cannon Subdweller Beam Cannon Ballistic Gun Assault Rifle Launcher Subdweller Shrapnel Launcher Special Weapon Mining Laser Build | -11 -10 -10 ------- Run | Yrd Mat Sub Slots Evolved . | . . . Power . | . . . Propulsion . | . . . Utility . | . . . Weapon . | . . . Parts Attached 19 | 6 3 10 Power 3 | 1 . 2 Engine 3 | 1 . 2 Core . | . . . Reactor . | . . . Propulsion 3 | 2 . 1 Treads 2 | 2 . . Leg . | . . . Wheel 1 | . . 1 Hover . | . . . Flight . | . . . Utility 6 | 1 3 2 Device . | . . . Storage 4 | 1 2 1 Processor . | . . . Hackware 1 | . 1 . Protection 1 | . . 1 Artifact . | . . . Weapon 7 | 2 . 5 Energy Gun 1 | . . 1 Energy Cannon 1 | . . 1 Ballistic Gun 3 | 2 . 1 Ballistic Cannon . | . . . Launcher 1 | . . 1 Special Weapon 1 | . . 1 Impact Weapon . | . . . Slashing Weapon . | . . . Piercing Weapon . | . . . Special Melee Weapon . | . . . Unidentified Prototypes . | . . . Parts Lost 7 | . . 7 Power 2 | . . 2 Propulsion 1 | . . 1 Utility 1 | . . 1 Weapon 3 | . . 3 Highest Loss Streak 4 | . . 4 To Critical Strikes . | . . . Average Backups 12 | 1 9 16 Power 1 | . 1 2 Propulsion 1 | . . 2 Utility 5 | . 4 6 Weapon 4 | . 3 5 Tool/Special . | . . . Unused Backups 14 | . . 14 Power 1 | . . 1 Propulsion 2 | . . 2 Utility 6 | . . 6 Weapon 5 | . . 5 Tool/Special . | . . . Average Slot Usage (%) 98 | . 98 98 Engine 13 | . 14 13 Treads 21 | . 27 14 Wheel 5 | . . 12 Storage 14 | . 14 14 Hackware 13 | . 12 14 Ballistic Gun 22 | . 28 16 Launcher 2 | . . 6 Special Weapon 1 | . . 2 Peak Build Rating 15 | 6 11 15 Average Rating 11 | 4 9 13 On Entrance 5 | . 6 11 Avg Prop Armor Cover (%) 11 | . . 11 Naked Turns . | . . . Heaviest Build 93 | 11 86 93 Greatest Support 40 | 40 40 40 Greatest Overweight (x) 4 | . 2 4 Average Overweight (x) 1 | . . 2 Largest Inventory Capacity 25 | 8 25 25 Average Capacity 18 | 7 16 21 Most Carried 20 | 4 16 20 Average Carried 12 | 1 9 17 Final Capacity 25 | 8 25 25 Final Carried 17 | 1 16 17 Class Distribution -------------------- 97% | Mutant Dominant Class ---------------- Mutant | -10/Materials Mutant | -10/Subcaves Resources | -11 -10 -10 ----------- Run | Yrd Mat Sub Matter Collected 984 | 228 337 419 Remotely . | . . . Salvage Created 686 | . 319 367 Parts 43 | . 26 17 Haulers Intercepted 2 | . 2 . Recyclers Shooed . | . . . Parts Field Recycled . | . . . Retrieved Matter . | . . . Parts Self-Destructed 3 | . . 3 Prevented . | . . . Parts Restored . | . . . Kills | -11 -10 -10 ------- Run | Yrd Mat Sub Combat Hostiles Destroyed 16 | . 8 8 Guns 12 | . 8 4 Cannons 2 | . . 2 AOE 2 | . . 2 Classes Destroyed 7 | . 5 2 Hauler 2 | . 2 . Operator 2 | . 2 . Watcher 1 | . 1 . Swarmer 8 | . 6 2 Grunt 3 | . 2 1 Sentry 1 | . . 1 Subdweller 4 | . . 4 Best Kill Streak 4 | . 3 4 Combat Bots Only 4 | . 3 4 Max Kills in Single Turn 1 | . 1 1 Gunslinging . | . . . Exploded 1 | . . 1 Melee . | . . . Uniques/NPCs Destroyed . | . . . Combat | -11 -10 -10 -------- Run | Yrd Mat Sub Hostile Shots Fired 88 | . 49 39 Missed 26 | . 11 15 Hits 62 | . 38 24 Projectile 62 | . 38 24 AOE 3 | . . 3 Critical Strikes 2 | . 1 1 Damage Taken 1030 | . 357 673 Core 253 | . 86 167 Absorbed by Shields . | . . . Core Remaining (%) 100 | 100 . . Volleys Fired 114 | . 50 64 Largest 2 | . 2 2 Hottest 100 | . 40 100 Shots Fired 171 | . 98 73 Gun 156 | . 98 58 Cannon 5 | . . 5 Launcher 7 | . . 7 Special 3 | . . 3 Kinetic 150 | . 98 52 Thermal 8 | . . 8 Explosive . | . . . Electromagnetic 13 | . . 13 Robot Hit Streak 24 | . 10 24 Robot Miss Streak 4 | . 4 3 Penetration Max . | . . . Secondary Targets 1 | . . 1 Max Gunslinging Chain 1 | . . 1 Shots Hit Robots 104 | . 58 46 Core Hits 38 | . 21 17 Critical Kills 1 | . 1 . Critical Parts Destroyed 1 | . 1 . Critical Strikes 2 | . 2 . Destroy 2 | . 2 . Melee Attacks . | . . . Impact . | . . . Slashing . | . . . Piercing . | . . . Sneak Attacks . | . . . Combat Hostiles . | . . . Follow-up Attacks . | . . . Damage Inflicted 1424 | . 632 792 Guns 1178 | . 632 546 Cannons 85 | . . 85 Explosions 161 | . . 161 Melee . | . . . Ramming . | . . . Kinetic 1210 | . 632 578 Thermal 85 | . . 85 Explosive . | . . . Electromagnetic 129 | . . 129 Impact . | . . . Slashing . | . . . Piercing . | . . . Highest Corruption 2 | . 2 2 Average Corruption 1 | . 1 2 Corruption Purged . | . . . Corruption Blocked . | . . . Effects 36 | . 21 15 Message Errors 6 | . 3 3 Matter Fused 15 | . 7 8 Heat Flow Errors 3 | . 1 2 Energy Discharges 3 | . 2 1 Parts Rejected 1 | . 1 . Parts Fused 1 | . 1 . Data Loss (minor) 3 | . 3 . Misfires 1 | . . 1 Alerts 1 | . 1 . Weapon Failures 2 | . 2 . Overload Shots . | . . . Overflow Damage . | . . . Projectiles . | . . . Explosions . | . . . Melee . | . . . Knockbacks . | . . . Impact . | . . . Kinetic . | . . . Secondary . | . . . Self-Inflicted Damage 100 | . . 100 Shots 4 | . . 4 Rammed 1 | . 1 . Targets Rammed 1 | . 1 . Kicked . | . . . Crushed . | . . . Highest Temperature 159 | . 159 75 Average Temperature 34 | . 39 23 Received Heat Transfer 162 | . 69 93 Siege Activations . | . . . Martial Activations . | . . . Shielding Activations . | . . . Robots Disrupted . | . . . Combat Hostiles . | . . . Robots Corrupted 1 | . . 1 Combat Hostiles 1 | . . 1 Parts Fried 4 | . . 4 Impact Corruptions . | . . . Robots Melted . | . . . Combat Hostiles . | . . . Parts Melted 1 | . . 1 Heat Transferred 111 | . . 111 Parts Sabotaged . | . . . Parts Stolen . | . . . Parts Stripped . | . . . Power Chain Reactions . | . . . Alert | -11 -10 -10 ------- Run | Yrd Mat Sub Maximum Alert Level . | . . . Low Security (%) 100 | 100 100 . Level 1 . | . . . Level 2 . | . . . Level 3 . | . . . Level 4 . | . . . Level 5 . | . . . High Security . | . . . Max Security . | . . . Peak Influence 97 | . 97 . Initial . | . . . Average 13 | . 14 . Influence Increases 389 | . 299 90 Destroy 0b10 Robot/C 240 | . 160 80 Destroy 0b10 Robot/NC 25 | . 25 . Destroy Leader 56 | . 46 10 Successful Hack 23 | . 23 . Lose Combat Pursuer 45 | . 45 . Influence Decreases 389 | . 299 90 Time Decay 351 | . 299 52 Lost Part 38 | . . 38 Squads Dispatched 2 | . 2 . Investigation . | . . . Extermination . | . . . Reinforcement 2 | . 2 . Assault . | . . . Garrison . | . . . Intercept . | . . . Searches Triggered . | . . . Construction Impeded . | . . . Haulers Reinforced . | . . . Active Scanning Responses . | . . . Cargo Convoy Interrupts . | . . . Stealth | -11 -10 -10 --------- Run | Yrd Mat Sub Distress Signals 3 | . 3 . Communications Jammed . | . . . Distress Signals . | . . . Times Spotted 37 | . 24 13 Peak Tracking Total 4 | . 4 3 Tactical Retreats 2 | . 2 . Traps | -11 -10 -10 ------- Run | Yrd Mat Sub Traps Triggered 3 | . 2 1 Indirectly . | . . . Trap Hack Attempts . | . . . Triggered . | . . . Disarmed . | . . . Reprogrammed . | . . . Reused . | . . . Traps Extracted . | . . . Installed . | . . . Triggered . | . . . Machines | -11 -10 -10 ---------- Run | Yrd Mat Sub Machines Disabled . | . . . Max in Single Turn . | . . . Machines Repaired . | . . . Machines Dismantled . | . . . Machines Sabotaged . | . . . Overloaded Fab Kills . | . . . Hacking | -11 -10 -10 --------- Run | Yrd Mat Sub Machines Accessed 8 | . 7 1 Terminals 6 | . 6 . Fabricators . | . . . Repair Stations . | . . . Recycling Units 1 | . 1 . Scanalyzers . | . . . Garrison Access . | . . . Total Hacks 26 | . 22 4 Successful 21 | . 17 4 Failed 5 | . 5 . Catastrophic . | . . . Database Lockouts . | . . . Manual 16 | . 15 1 Terminals 18 | . 18 . Fabricators . | . . . Repair Stations . | . . . Recycling Units 4 | . 4 . Scanalyzers . | . . . Garrison Access . | . . . Terminal Hacks 8 | . 4 4 Record 4 | . . 4 Robot Analysis 1 | . 1 . Branch Access Points 1 | . 1 . Terminal Index 1 | . 1 . Locate Traps 1 | . 1 . Fabricator Hacks . | . . . Repair Station Hacks . | . . . Recycling Unit Hacks 3 | . 3 . Report Inventory 2 | . 2 . Retrieve Components 1 | . 1 . Scanalyzer . | . . . Garrison Access Hacks . | . . . Unauthorized Hacks 10 | . 10 . Terminals 9 | . 9 . Track 1 | . 1 . Botnet 2 | . 2 . Operators 1 | . 1 . Skim 5 | . 5 . Fabricators . | . . . Repair Stations . | . . . Recycling Units 1 | . 1 . Recyclers 1 | . 1 . Scanalyzers . | . . . Garrison Access . | . . . Data Cores Recovered . | . . . Used . | . . . Hacking Detections 5 | . 5 . Full Trace Events . | . . . Feedback Events . | . . . Feedback Blocked . | . . . Robot Schematics Acquired . | . . . Robots Built . | . . . Authchips . | . . . Time . | . . . Total Robot Build Rating . | . . . Part Schematics Acquired . | . . . Parts Built . | . . . Authchips . | . . . Time . | . . . Total Part Build Rating . | . . . Part Studies Acquired . | . . . Parts Repaired . | . . . Time . | . . . Parts Recycled . | . . . Recycled Matter . | . . . Retrieved Matter . | . . . Retrieved Components 9 | . 9 . Parts Scanalyzed . | . . . Part Schematics Acquired . | . . . Parts Damaged . | . . . Bothacking | -11 -10 -10 ------------ Run | Yrd Mat Sub Used RIF Installer . | . . . Robots Hacked . | . . . Non-combat . | . . . Combat . | . . . Robot Hacks Applied . | . . . Relay Couplers Released . | . . . Fabnet Peak Effective % . | . . . Robots Rewired . | . . . Allies Hacked . | . . . Hacks Repelled . | . . . Allies | -11 -10 -10 -------- Run | Yrd Mat Sub Total Allies . | . . . Largest Group . | . . . Highest-Rated Group . | . . . Highest-Rated Ally . | . . . Total Orders . | . . . Ally Attacks . | . . . Total Damage . | . . . Kills . | . . . Allies Corrupted . | . . . Allies Melted . | . . . Intel | -11 -10 -10 ------- Run | Yrd Mat Sub Active Infowar (turns) . | . . . Robot Analysis Total 1 | . 1 . Derelict Logs Recovered 1 | . . 1 Drone Launches . | . . . Drone Recoveries . | . . . Exploration | -11 -10 -10 ------------- Run | Yrd Mat Sub Turns Passed 3342 | 90 1803 1449 Spaces Moved 1815 | 57 885 873 Core 12 | 12 . . Treads 985 | 45 885 55 Legs . | . . . Wheels 818 | . . 818 Hover . | . . . Flight . | . . . Fastest Speed 50 | 50 160 130 Average Speed 162 | 136 180 145 Slowest Speed 480 | 160 320 480 Overloaded Moves . | . . . Propulsion Burnouts . | . . . Robots Hopped . | . . . Potential Cave-ins . | . . . Cave-ins Triggered . | . . . Exploration Rate (%) 54 | 3 95 64 Regions Visited 2 Branch Regions 1 Pre-discovered Areas 1 | . . 1 Known Exits Taken . | . . . Unknown Exits Taken 2 | 1 1 . Scrap Searched . | . . . Spaces Dug 11 | . . 11 Terrain Destroyed 83 | . . 83 Melee . | . . . Projectile 1 | . . 1 AOE 82 | . . 82 Terrain Rammed . | . . . Walls Destroyed . | . . . Machines Disabled . | . . . Actions | -11 -10 -10 --------- Run | Yrd Mat Sub Total 2040 | 69 1000 971 Wait 42 | . 37 5 Move 1813 | 56 884 873 Hop . | . . . Pick Up 36 | 7 19 10 Fast Attach . | . . . Attach 16 | 6 3 7 Detach 2 | . 1 1 Swap 11 | . 3 8 Drop 5 | . 2 3 Fire 114 | . 50 64 Melee . | . . . Ram . | . . . Kick . | . . . Crush 1 | . 1 . Escape Stasis . | . . . Rewire . | . . . Trap . | . . . Miscellaneous . | . . . Route ------- -11/Scrapyard -10/Materials (discovered 5 exits: *Mat x3 / *Min / *Sub) -10/Subcaves (discovered 2 exits: [*Mat] / [*Scr]) History --------- Turn | Location | Event 19 | -11/Scrapyard | Discovered new exit (range 16) 91 | -11/Scrapyard | Entered Materials 92 | -10/Materials | Met a group of wandering Federalists 230 | -10/Materials | Discovered new exit (range 5) 301 | -10/Materials | Build established: Mutant 388 | -10/Materials | Identified exit to Mines 428 | -10/Materials | Discovered new exit (range 9) 642 | -10/Materials | Discovered new exit (range 16) 713 | -10/Materials | Learned Storage emergency access door positions 785 | -10/Materials | Learned Storage stockpile data 847 | -10/Materials | Learned Storage stockpile data 937 | -10/Materials | Learned location of 2 exits from Mines 968 | -10/Materials | Identified exit to Materials 1055 | -10/Materials | Learned location of 1 exit from Storage 1103 | -10/Materials | Loaded intel: 1 repair station location 1894 | -10/Materials | Entered Subcaves 1895 | -10/Subcaves | Continued accompanying wandering Federalists (5) 1895 | -10/Subcaves | Approached by a straggling Scientist 1943 | -10/Subcaves | Shifting Twisted Machinery released Battle Rifle 1948 | -10/Subcaves | Shifting Twisted Machinery released Enh. Flamer 2160 | -10/Subcaves | A swath of the cavern ceiling suddenly collapsed 2201 | -10/Subcaves | A swath of the cavern ceiling suddenly collapsed 2408 | -10/Subcaves | Core integrity fell below 50% 2726 | -10/Subcaves | Learned Materials stockpile data 2746 | -10/Subcaves | Visited Clippyterm 2749 | -10/Subcaves | Learned location of Deep Caves (-7) 3141 | -10/Subcaves | Lost 4 parts (1p1n2w) 3245 | -10/Subcaves | Discovered new exit (range 16) 3280 | -10/Subcaves | Core integrity fell below 20% 3343 | -10/Subcaves | Destroyed by DQ-JYE(R) with Subdweller Machine Gun Last Messages --------------- Lgt. Ion Engine destroyed. Y-45 Defender destroyed. Heat Sink fries itself beyond repair. Acquired 1 matter. Acquired 31 matter. Acquired 18 matter. Acquired 16 matter. Acquired 58 matter. Acquired Sub. Beam Cannon. EXIT=FOUND YI-5QT(R) destroyed. Disposable Heat Sink melted. MX-DZX(R) destroyed. Acquired 51 matter. Sub. Beam Cannon shoots sparks and powers down. Dropped Broken Sub. Beam Cannon. Acquired Sub. Optics. Acquired 40 matter. Hacking Suite destroyed. [Achievement: This Is Interesting...] Map ----- +----------------------------------------------------+ | ?????????????????????????????????????????????????? | | ?????????????????????????????????????????????????? | | ?????????????????????????????????????????????????? | | ?????????????????????????????????????????????????? | | ?????????????????????????????????????????????????? | | ?????????????????????????????????????????????????? | | ?????????????????????????????????????????????????? | | ?????????????????????????????????????????????????? | | ?????????????????????????????????????????????????? | | ?????????????????????????????????????????????????? | | ?????????????????????????????????????????????????? | | ??????????????????????????????????????# ?????????? | | ?????????????????????????????????????# ?????????? | | ??????????????????????????????????### ??????????? | | ??????????????????????????????????"" "??????????? | | ???????????????????????????##?????"" ""?????????? | | ??????????????????????????# ?????# """?????????? | | ????????????????#???????## " ?#### "#?????????? | | ????????????????? ?????## """#?#""""""#?###??????? | | ?????????????????? ##### """###" """#?## #??????? | | ??????????????????? """"## ] ### #####??? | | ??????????????"" ??? """?## <*## ## ##?? | | ???????????????? ??? "#???## & # ## #?? | | ??????????????????# ### "#???#" &&& ## #?? | | ??????????????????# R ""##### & ## #??? | | ??????????????????# R @ # ##??? | | ??????????????????#### # ##??? | | ???????????????????????### #??? | | ?????????????????????????#### # #####??? | | ????????????????????????????### ## ##??????? | | ?????????????????????????????# ## #???????? | | ?????????????????????????????## ##??????? | | ??????????????????????????????# #??????? | | ?????????????????????????????## ## #?????? | | ?????????????????????????????# ### #?????? | | ?????????????????????????????# ##?# #?????? | | ?????????????????????????????## #??##?????? | | ??????????????????????????????## #?????????? | | ???????????????????????????????# ##?????????? | | ???????????????????????????????# ##?????????? | | ??????????????????????????????## #####?????? | | ?????????????????????????????## #?????? | | ?????????????????????????????# # ##?????? | | ?????????????????????????????# & ## #??????? | | ?????????????????????????????## #? ?????? | | ??????????????????????????????# ####??# ????? | | ??????????????????????????????# ##????? #???? | | ??????????????????????????????## ###???? ???? | | ????????????????????????## ????### #????? #??? | | ?????????????????????? #???#?## #?????????? | +----------------------------------------------------+ Best States ------------- Heat Dissipation 25 Energy Generation 10 Energy Capacity 125 Matter Stores 300 Matter Capacity 300 Sight Range 16 Terrain Scan Density 10 Evasion (%) 50 Recoil Reduction 2 Offensive Hacking 10 Item Schematics ----------------- None Robot Schematics ------------------ None Fabricated ------------ Nothing Repaired ---------- Nothing Studied --------- None Alien Tech Used ----------------- None Achievements -------------- This Is Interesting... Challenges ------------ None Game ------ Seed MultireflexExpertStabilizer Manual? 0 Play Time 00:18:32 Cumulative 31.9 hours Start 2026.07.03 @ 18:15:23 End 2026.07.03 @ 18:33:28 Sessions 1 Manual Loads 0 Difficulty Rogue Special Mode None Game No. 24 Rogue 23 Adventurer 1 Explorer 0 Win Type - Total 1 Types 1/0/0/0/0/0/0/0/0/0 Lore% 25 Gallery% 33 Achievement% 32 Wizard Run 0 Options --------- Layout 1 ASCII 0 Keyboard 0 Movement Mouse Keybinds 0 Fullscreen 1 Font 32/SmallcapsGlow Map View 50x35 Zoom Use 0% Tactical HUD 0 Map Filters NONE Filters NONE Steam 1 RUN: 307a88c0-e644-432f-9ed5-0e345faff741